[Event "*** Titled Tuesday Blitz"]
[Site "Chess.com"]
[Date "2018.12.04"]
[Round "3"]
[White "PawnEatingZombie"]
[Black "Vamostodorecto"]
[Result "0-1"]
[WhiteElo "2219"]
[BlackElo "2427"]
[TimeControl "180+2"]
[EndTime "13:34:44 PST"]
[Termination "Vamostodorecto won by resignation"]

1. d4 {[%clk 0:03:01.9]} 1... d5 {[%clk 0:02:59.7]} 2. c4 {[%clk 0:03:02.4]}
2... dxc4 {[%clk 0:03:01.6]} 3. e4 {[%clk 0:03:02.8]} 3... b5 {[%clk 0:02:58.6]}
4. a4 {[%clk 0:03:01.9]} 4... c6 {[%clk 0:02:59.8]} 5. axb5 {[%clk 0:03:01.4]}
5... cxb5 {[%clk 0:03:01.7]} 6. Nc3 {[%clk 0:03:02.4]} 6... a6 {[%clk
0:03:01.9]} 7. Nxb5 {[%clk 0:03:04]} 7... axb5 {[%clk 0:03:02.5]} 8. Rxa8 {[%clk
0:03:05.6]} 8... Bb7 {[%clk 0:03:04.1]} 9. Ra1 {[%clk 0:03:06.4]} 9... e6 {[%clk
0:03:05.6]} 10. Nf3 {[%clk 0:02:52.9]} 10... Nf6 {[%clk 0:03:05.6]} 11. Be2
{[%clk 0:02:49.3]} 11... Bb4+ {[%clk 0:03:01.6]} 12. Bd2 {[%clk 0:02:48.2]}
12... Bxd2+ {[%clk 0:02:58]} 13. Qxd2 {[%clk 0:02:45.1]} 13... Nxe4 {[%clk
0:02:58]} 14. Qc2 {[%clk 0:02:45.9]} 14... O-O {[%clk 0:02:39.3]} 15. O-O {[%clk
0:02:43.1]} 15... Ng5 {[%clk 0:02:37]} 16. Rfd1 {[%clk 0:01:26.9]} 16... Nxf3+
{[%clk 0:02:18.5]} 17. Bxf3 {[%clk 0:01:28.8]} 17... Bxf3 {[%clk 0:02:17.5]} 18.
gxf3 {[%clk 0:01:30.7]} 18... Nc6 {[%clk 0:02:15.9]} 19. Qe4 {[%clk 0:01:29.9]}
19... Nb4 {[%clk 0:02:13]} 20. Kh1 {[%clk 0:01:06.7]} 20... g6 {[%clk
0:01:55.5]} 21. Ra7 {[%clk 0:01:05.9]} 21... Nd3 {[%clk 0:01:37.9]} 22. Rd2
{[%clk 0:01:05.5]} 22... Qg5 {[%clk 0:01:27.3]} 23. Qe3 {[%clk 0:00:57.3]} 23...
Nf4 {[%clk 0:01:20.5]} 0-1

[Event "*** Titled Tuesday Blitz"]
[Site "Chess.com"]
[Date "2018.12.04"]
[Round "3"]
[White "silverback96"]
[Black "GMWSO"]
[Result "0-1"]
[WhiteElo "2126"]
[BlackElo "2980"]
[TimeControl "180+2"]
[EndTime "13:34:45 PST"]
[Termination "GMWSO won by resignation"]

1. d4 {[%clk 0:02:58.7]} 1... Nf6 {[%clk 0:02:59]} 2. c4 {[%clk 0:03:00.1]} 2...
e6 {[%clk 0:02:59.9]} 3. g3 {[%clk 0:03:01.6]} 3... Bb4+ {[%clk 0:02:59.5]} 4.
Bd2 {[%clk 0:03:02.8]} 4... Be7 {[%clk 0:03:00.7]} 5. Bg2 {[%clk 0:03:02]} 5...
d5 {[%clk 0:03:02.6]} 6. Nf3 {[%clk 0:03:02.8]} 6... O-O {[%clk 0:03:03.7]} 7.
O-O {[%clk 0:03:03.9]} 7... Nbd7 {[%clk 0:03:04.4]} 8. Qc2 {[%clk 0:03:03.1]}
8... c6 {[%clk 0:03:05.3]} 9. Rc1 {[%clk 0:03:01.9]} 9... b6 {[%clk 0:02:59]}
10. Nc3 {[%clk 0:02:46]} 10... dxc4 {[%clk 0:02:57.3]} 11. e4 {[%clk 0:02:44.6]}
11... Bb7 {[%clk 0:02:55.7]} 12. e5 {[%clk 0:02:36.6]} 12... Nd5 {[%clk
0:02:55.8]} 13. Ne4 {[%clk 0:02:38.1]} 13... b5 {[%clk 0:02:55.6]} 14. h4 {[%clk
0:02:35.3]} 14... h6 {[%clk 0:02:55]} 15. Nh2 {[%clk 0:01:55.3]} 15... c5 {[%clk
0:02:48.1]} 16. Bc3 {[%clk 0:01:42.8]} 16... b4 {[%clk 0:02:45.9]} 17. Bd2
{[%clk 0:01:39.4]} 17... cxd4 {[%clk 0:02:47]} 18. Qxc4 {[%clk 0:01:40.3]} 18...
Nxe5 {[%clk 0:02:43.2]} 19. Qxd4 {[%clk 0:01:36.4]} 19... Nc6 {[%clk 0:02:42.3]}
20. Qd3 {[%clk 0:01:27.8]} 20... Qb6 {[%clk 0:02:38.9]} 21. Ng4 {[%clk
0:01:14.1]} 21... f5 {[%clk 0:02:35.3]} 22. Nc5 {[%clk 0:00:15.8]} 22... fxg4
{[%clk 0:02:30.1]} 23. Nxe6 {[%clk 0:00:13.8]} 23... Qxf2+ {[%clk 0:02:30.3]}
24. Kh2 {[%clk 0:00:14.6]} 24... Ne5 {[%clk 0:02:30.7]} 25. Qb5 {[%clk
0:00:08.5]} 25... Nf3+ {[%clk 0:02:30.5]} 26. Kh1 {[%clk 0:00:09.8]} 26... Qxg3
{[%clk 0:02:32]} 27. Bxf3 {[%clk 0:00:08.3]} 27... Qxf3+ {[%clk 0:02:32.5]} 28.
Kh2 {[%clk 0:00:09.4]} 28... Qf2+ {[%clk 0:02:32.7]} 0-1

[Event "*** Titled Tuesday Blitz"]
[Site "Chess.com"]
[Date "2018.12.04"]
[Round "3"]
[White "dretch"]
[Black "ENEASZ"]
[Result "1-0"]
[WhiteElo "2816"]
[BlackElo "2607"]
[TimeControl "180+2"]
[EndTime "13:34:51 PST"]
[Termination "dretch won by resignation"]

1. d4 {[%clk 0:02:57.7]} 1... Nf6 {[%clk 0:03:00.2]} 2. c4 {[%clk 0:02:58.6]}
2... e6 {[%clk 0:02:59]} 3. Nc3 {[%clk 0:02:59.6]} 3... d5 {[%clk 0:02:59.8]} 4.
cxd5 {[%clk 0:02:57.9]} 4... exd5 {[%clk 0:03:01.7]} 5. Bg5 {[%clk 0:02:57.3]}
5... Be7 {[%clk 0:03:02.5]} 6. e3 {[%clk 0:02:54.7]} 6... Nbd7 {[%clk
0:03:01.1]} 7. Bd3 {[%clk 0:02:54.4]} 7... c6 {[%clk 0:03:02.2]} 8. Nge2 {[%clk
0:02:53.6]} 8... Nh5 {[%clk 0:03:02.9]} 9. Bxe7 {[%clk 0:02:52.1]} 9... Qxe7
{[%clk 0:03:04.8]} 10. O-O {[%clk 0:02:52]} 10... O-O {[%clk 0:03:05.2]} 11. Qb1
{[%clk 0:02:49.3]} 11... g6 {[%clk 0:03:04.8]} 12. b4 {[%clk 0:02:50]} 12... a6
{[%clk 0:03:05.1]} 13. a4 {[%clk 0:02:50.3]} 13... Ng7 {[%clk 0:02:59.6]} 14. b5
{[%clk 0:02:51.1]} 14... c5 {[%clk 0:02:56.4]} 15. Nxd5 {[%clk 0:02:50.4]} 15...
Qd6 {[%clk 0:02:57.6]} 16. Ndc3 {[%clk 0:02:48.2]} 16... cxd4 {[%clk 0:02:56.8]}
17. Nxd4 {[%clk 0:02:46.6]} 17... Ne5 {[%clk 0:02:57.7]} 18. Ne4 {[%clk
0:02:32.6]} 18... Qe7 {[%clk 0:02:56.2]} 19. Be2 {[%clk 0:02:28.1]} 19... Nf5
{[%clk 0:02:55.7]} 20. Qb2 {[%clk 0:02:20.5]} 20... Bd7 {[%clk 0:02:40.2]} 21.
Nc3 {[%clk 0:02:05.9]} 21... Nxd4 {[%clk 0:02:38]} 22. exd4 {[%clk 0:02:06.2]}
22... Ng4 {[%clk 0:02:37]} 23. Rfe1 {[%clk 0:01:56.6]} 23... Rfe8 {[%clk
0:02:27.9]} 24. Qd2 {[%clk 0:01:43.8]} 24... Qd6 {[%clk 0:01:57.8]} 25. Bxg4
{[%clk 0:01:42.3]} 25... Bxg4 {[%clk 0:01:59.7]} 26. Ne4 {[%clk 0:01:41.8]}
26... Qb6 {[%clk 0:02:00.8]} 27. Qg5 {[%clk 0:01:26]} 27... Qxd4 {[%clk
0:01:34.3]} 28. Nf6+ {[%clk 0:01:22.4]} 28... Kg7 {[%clk 0:01:35.1]} 29. Nxg4
{[%clk 0:01:14.3]} 29... Qc3 {[%clk 0:01:28.7]} 30. Ne3 {[%clk 0:00:58.4]} 30...
axb5 {[%clk 0:01:27.9]} 31. Qxb5 {[%clk 0:00:58.3]} 31... Ra5 {[%clk 0:01:26.1]}
32. Qxe8 {[%clk 0:00:58.3]} 1-0

[Event "*** Titled Tuesday Blitz"]
[Site "Chess.com"]
[Date "2018.12.04"]
[Round "3"]
[White "NTDVAN"]
[Black "SCIM"]
[Result "1-0"]
[WhiteElo "2644"]
[BlackElo "2425"]
[TimeControl "180+2"]
[EndTime "13:34:53 PST"]
[Termination "NTDVAN won by resignation"]

1. e4 {[%clk 0:03:01.9]} 1... c5 {[%clk 0:02:56.5]} 2. Nf3 {[%clk 0:03:02.6]}
2... e6 {[%clk 0:02:58]} 3. d4 {[%clk 0:03:03]} 3... cxd4 {[%clk 0:02:59.4]} 4.
Nxd4 {[%clk 0:03:04.9]} 4... Nc6 {[%clk 0:03:00.7]} 5. Nc3 {[%clk 0:03:05.7]}
5... Qc7 {[%clk 0:03:01.9]} 6. Be3 {[%clk 0:03:06.8]} 6... a6 {[%clk 0:03:02.7]}
7. Qf3 {[%clk 0:03:07.9]} 7... Nf6 {[%clk 0:03:03.9]} 8. O-O-O {[%clk
0:03:08.7]} 8... Ne5 {[%clk 0:03:04.1]} 9. Qg3 {[%clk 0:03:10.1]} 9... b5 {[%clk
0:03:05.3]} 10. Bxb5 {[%clk 0:03:06.8]} 10... axb5 {[%clk 0:02:59.8]} 11. Ndxb5
{[%clk 0:03:08.7]} 11... Qb8 {[%clk 0:02:53.4]} 12. Bf4 {[%clk 0:03:09.6]} 12...
d6 {[%clk 0:02:41.6]} 13. Rxd6 {[%clk 0:03:08.1]} 13... Bxd6 {[%clk 0:02:38.2]}
14. Nxd6+ {[%clk 0:03:00.4]} 14... Qxd6 {[%clk 0:02:38]} 15. Bxe5 {[%clk
0:02:58.2]} 15... Qe7 {[%clk 0:02:06]} 16. Qxg7 {[%clk 0:02:57.1]} 16... Rg8
{[%clk 0:02:05.5]} 17. Qxf6 {[%clk 0:02:57.7]} 17... Qxf6 {[%clk 0:02:05.8]} 18.
Bxf6 {[%clk 0:02:59.6]} 18... Rxg2 {[%clk 0:02:05.5]} 19. Bh4 {[%clk 0:03:00.6]}
19... Bb7 {[%clk 0:01:40.9]} 20. Bg3 {[%clk 0:03:00]} 20... Rd8 {[%clk
0:01:37.1]} 21. Re1 {[%clk 0:02:58.5]} 21... h5 {[%clk 0:01:33.1]} 22. a4 {[%clk
0:02:57.2]} 22... Rd4 {[%clk 0:01:30.5]} 23. b3 {[%clk 0:02:43.4]} 23... h4
{[%clk 0:01:05]} 24. Bxh4 {[%clk 0:02:43.6]} 24... Rxh2 {[%clk 0:01:06.5]} 25.
Bg3 {[%clk 0:02:45.2]} 25... Rh5 {[%clk 0:01:08]} 26. Nb5 {[%clk 0:02:42.5]}
26... Rxb5 {[%clk 0:00:52.6]} 27. axb5 {[%clk 0:02:44.4]} 27... Rb4 {[%clk
0:00:52.7]} 28. Kb2 {[%clk 0:02:37.1]} 28... Rxb5 {[%clk 0:00:53.1]} 29. c4
{[%clk 0:02:38.2]} 29... Rb6 {[%clk 0:00:46.2]} 30. Kc3 {[%clk 0:02:38.2]} 30...
Ra6 {[%clk 0:00:41.9]} 31. Kb2 {[%clk 0:02:25.1]} 31... Kd7 {[%clk 0:00:29]} 32.
Rd1+ {[%clk 0:02:25.4]} 32... Ke7 {[%clk 0:00:23.9]} 33. Bh4+ {[%clk 0:02:25.3]}
33... Kf8 {[%clk 0:00:19.5]} 34. Bf6 {[%clk 0:02:25.6]} 34... Kg8 {[%clk
0:00:19.9]} 35. Rh1 {[%clk 0:02:26.5]} 1-0

[Event "*** Titled Tuesday Blitz"]
[Site "Chess.com"]
[Date "2018.12.04"]
[Round "3"]
[White "Jadeit90"]
[Black "SanchezKelvin"]
[Result "1/2-1/2"]
[WhiteElo "2266"]
[BlackElo "2481"]
[TimeControl "180+2"]
[EndTime "13:35:01 PST"]
[Termination "Game drawn by stalemate"]

1. g3 {[%clk 0:03:01.9]} 1... g6 {[%clk 0:02:59.9]} 2. Bg2 {[%clk 0:03:03.3]}
2... Bg7 {[%clk 0:03:01.8]} 3. Nc3 {[%clk 0:03:03.1]} 3... c5 {[%clk 0:03:02.8]}
4. e4 {[%clk 0:03:04.4]} 4... Nc6 {[%clk 0:03:02.8]} 5. d3 {[%clk 0:03:05.8]}
5... d6 {[%clk 0:03:02.1]} 6. Be3 {[%clk 0:03:07]} 6... e5 {[%clk 0:03:02.5]} 7.
Nge2 {[%clk 0:03:04.3]} 7... Nge7 {[%clk 0:03:02.9]} 8. O-O {[%clk 0:03:04.1]}
8... O-O {[%clk 0:03:04.1]} 9. Qd2 {[%clk 0:03:05.4]} 9... Nd4 {[%clk
0:03:04.6]} 10. Rae1 {[%clk 0:03:04.9]} 10... Rb8 {[%clk 0:02:59.8]} 11. Nd1
{[%clk 0:03:05.9]} 11... Bh3 {[%clk 0:02:51.1]} 12. c3 {[%clk 0:03:06.5]} 12...
Bxg2 {[%clk 0:02:48]} 13. Kxg2 {[%clk 0:03:06.9]} 13... Nxe2 {[%clk 0:02:48.9]}
14. Rxe2 {[%clk 0:03:03.4]} 14... Qa5 {[%clk 0:02:50]} 15. b4 {[%clk 0:03:01.7]}
15... cxb4 {[%clk 0:02:47]} 16. cxb4 {[%clk 0:03:02.9]} 16... Qa3 {[%clk
0:02:41]} 17. d4 {[%clk 0:03:02.3]} 17... d5 {[%clk 0:02:32.9]} 18. dxe5 {[%clk
0:02:54]} 18... dxe4 {[%clk 0:02:32.7]} 19. Bc5 {[%clk 0:02:54.9]} 19... Rfd8
{[%clk 0:02:27.8]} 20. Qe3 {[%clk 0:02:40.1]} 20... Qxe3 {[%clk 0:02:22.3]} 21.
Rxe3 {[%clk 0:02:41]} 21... Nc6 {[%clk 0:02:21.9]} 22. Rxe4 {[%clk 0:02:42]}
22... b6 {[%clk 0:02:19.2]} 23. Be3 {[%clk 0:02:41.4]} 23... Nxe5 {[%clk
0:02:12.7]} 24. Bf4 {[%clk 0:02:40.3]} 24... f6 {[%clk 0:02:12.9]} 25. Bxe5
{[%clk 0:02:39.7]} 25... fxe5 {[%clk 0:02:13.4]} 26. Ne3 {[%clk 0:02:40.2]}
26... Rd4 {[%clk 0:02:13.5]} 27. Rg4 {[%clk 0:02:32.8]} 27... Rbd8 {[%clk
0:02:08.4]} 28. Rc1 {[%clk 0:02:21.6]} 28... R8d7 {[%clk 0:01:59.2]} 29. Rc8+
{[%clk 0:02:20.9]} 29... Kf7 {[%clk 0:01:59.1]} 30. h4 {[%clk 0:02:19.8]} 30...
h5 {[%clk 0:01:58.2]} 31. Rxd4 {[%clk 0:02:16.3]} 31... exd4 {[%clk 0:02:00.1]}
32. Nc4 {[%clk 0:02:11.3]} 32... d3 {[%clk 0:01:59.7]} 33. Ne3 {[%clk
0:02:10.8]} 33... d2 {[%clk 0:01:58.2]} 34. Nd1 {[%clk 0:02:12]} 34... Be5
{[%clk 0:01:54.5]} 35. Rc2 {[%clk 0:02:11.4]} 35... Rd4 {[%clk 0:01:50.4]} 36.
Kf1 {[%clk 0:02:10.4]} 36... Rxb4 {[%clk 0:01:40]} 37. Rxd2 {[%clk 0:02:11.1]}
37... Rd4 {[%clk 0:01:41.1]} 38. Rxd4 {[%clk 0:02:11.8]} 38... Bxd4 {[%clk
0:01:41.5]} 39. Ke2 {[%clk 0:02:13.2]} 39... Ke6 {[%clk 0:01:41.2]} 40. Ne3
{[%clk 0:02:14.4]} 40... Bxe3 {[%clk 0:01:40.6]} 41. Kxe3 {[%clk 0:02:15.6]}
41... b5 {[%clk 0:01:39]} 42. Ke4 {[%clk 0:02:15.2]} 42... a5 {[%clk 0:01:38.8]}
43. f3 {[%clk 0:02:15.1]} 43... b4 {[%clk 0:01:36.2]} 44. g4 {[%clk 0:02:15.4]}
44... a4 {[%clk 0:01:35.1]} 45. Kd4 {[%clk 0:02:16.5]} 45... b3 {[%clk
0:01:35.1]} 46. axb3 {[%clk 0:02:17.2]} 46... axb3 {[%clk 0:01:36.2]} 47. Kc3
{[%clk 0:02:18.3]} 47... Ke5 {[%clk 0:01:37.3]} 48. Kxb3 {[%clk 0:02:17.9]}
48... Kf4 {[%clk 0:01:36.3]} 49. gxh5 {[%clk 0:02:19]} 49... gxh5 {[%clk
0:01:37.4]} 50. Kc3 {[%clk 0:02:20.4]} 50... Kxf3 {[%clk 0:01:38.4]} 51. Kd3
{[%clk 0:02:21.8]} 51... Kg3 {[%clk 0:01:39.6]} 52. Ke2 {[%clk 0:02:23.1]} 52...
Kxh4 {[%clk 0:01:41.5]} 53. Kf1 {[%clk 0:02:24.4]} 53... Kh3 {[%clk 0:01:43.4]}
54. Kg1 {[%clk 0:02:25.8]} 54... Kg3 {[%clk 0:01:45.3]} 55. Kh1 {[%clk
0:02:27.1]} 55... h4 {[%clk 0:01:47.2]} 56. Kg1 {[%clk 0:02:28.4]} 56... h3
{[%clk 0:01:49.1]} 57. Kh1 {[%clk 0:02:29.9]} 57... h2 {[%clk 0:01:51]} 1/2-1/2

[Event "*** Titled Tuesday Blitz"]
[Site "Chess.com"]
[Date "2018.12.04"]
[Round "3"]
[White "1e41-0"]
[Black "Fianchettoed-Tower"]
[Result "1-0"]
[WhiteElo "2506"]
[BlackElo "2473"]
[TimeControl "180+2"]
[EndTime "13:35:02 PST"]
[Termination "1e41-0 won by checkmate"]

1. d4 {[%clk 0:03:01.9]} 1... Nf6 {[%clk 0:03:00.2]} 2. c4 {[%clk 0:03:03.1]}
2... g6 {[%clk 0:03:01.4]} 3. Nc3 {[%clk 0:03:04.5]} 3... d5 {[%clk 0:03:02.9]}
4. Bg5 {[%clk 0:03:04.8]} 4... Ne4 {[%clk 0:03:03.5]} 5. h4 {[%clk 0:03:05.6]}
5... h6 {[%clk 0:02:55.4]} 6. Bf4 {[%clk 0:03:01.1]} 6... Nxc3 {[%clk
0:02:43.9]} 7. bxc3 {[%clk 0:03:03]} 7... dxc4 {[%clk 0:02:40.2]} 8. e4 {[%clk
0:02:59.2]} 8... Bg7 {[%clk 0:02:37.3]} 9. Bxc4 {[%clk 0:02:52.9]} 9... c5
{[%clk 0:02:30.8]} 10. Nf3 {[%clk 0:02:44.5]} 10... Qa5 {[%clk 0:02:15.6]} 11.
O-O {[%clk 0:02:27.9]} 11... O-O {[%clk 0:02:06.9]} 12. Qc1 {[%clk 0:02:10.3]}
12... Kh7 {[%clk 0:02:01.2]} 13. h5 {[%clk 0:01:57.6]} 13... Bg4 {[%clk
0:01:56.5]} 14. hxg6+ {[%clk 0:01:45.2]} 14... fxg6 {[%clk 0:01:56.8]} 15. Ne5
{[%clk 0:01:46.7]} 15... Bxe5 {[%clk 0:01:45.5]} 16. dxe5 {[%clk 0:01:37.9]}
16... Qa4 {[%clk 0:01:26.9]} 17. Bd5 {[%clk 0:01:35.1]} 17... Nc6 {[%clk
0:01:27.9]} 18. f3 {[%clk 0:01:31.1]} 18... Bc8 {[%clk 0:01:12.5]} 19. Bxh6
{[%clk 0:01:28.8]} 19... Rd8 {[%clk 0:01:07.7]} 20. Qg5 {[%clk 0:01:27.2]} 20...
Bd7 {[%clk 0:00:40]} 21. Qh4 {[%clk 0:01:24]} 21... e6 {[%clk 0:00:34.2]} 22.
Bg5+ {[%clk 0:01:21.7]} 22... Kg8 {[%clk 0:00:35.5]} 23. Qh6 {[%clk 0:01:17.6]}
23... exd5 {[%clk 0:00:27.9]} 24. Qxg6+ {[%clk 0:01:17.4]} 24... Kf8 {[%clk
0:00:27.6]} 25. Bh6+ {[%clk 0:01:17.4]} 25... Ke7 {[%clk 0:00:28.9]} 26. Qf6+
{[%clk 0:01:18.8]} 26... Ke8 {[%clk 0:00:29.9]} 27. Qf8# {[%clk 0:01:20.4]} 1-0

[Event "*** Titled Tuesday Blitz"]
[Site "Chess.com"]
[Date "2018.12.04"]
[Round "3"]
[White "dmosesov"]
[Black "narutosmith"]
[Result "1-0"]
[WhiteElo "2354"]
[BlackElo "2220"]
[TimeControl "180+2"]
[EndTime "13:35:16 PST"]
[Termination "dmosesov won by resignation"]

1. e4 {[%clk 0:03:01.9]} 1... c5 {[%clk 0:02:59.9]} 2. Nf3 {[%clk 0:03:00.8]}
2... e6 {[%clk 0:03:00.8]} 3. d4 {[%clk 0:03:01.1]} 3... cxd4 {[%clk 0:03:01.8]}
4. Nxd4 {[%clk 0:03:03]} 4... Nc6 {[%clk 0:03:02.8]} 5. Nc3 {[%clk 0:03:03.2]}
5... Qc7 {[%clk 0:03:03.7]} 6. Be3 {[%clk 0:03:04.1]} 6... a6 {[%clk 0:03:04.8]}
7. Be2 {[%clk 0:03:05.5]} 7... Nf6 {[%clk 0:03:04.9]} 8. O-O {[%clk 0:03:05.5]}
8... h5 {[%clk 0:03:04.7]} 9. h3 {[%clk 0:02:47.7]} 9... d6 {[%clk 0:03:02.7]}
10. f4 {[%clk 0:02:45.5]} 10... Bd7 {[%clk 0:03:01.2]} 11. Bf3 {[%clk
0:02:34.6]} 11... Rc8 {[%clk 0:03:00.2]} 12. Nb3 {[%clk 0:02:07.3]} 12... b5
{[%clk 0:02:50.5]} 13. Re1 {[%clk 0:01:59.8]} 13... Be7 {[%clk 0:02:32.4]} 14.
Qe2 {[%clk 0:01:46.4]} 14... h4 {[%clk 0:01:53.5]} 15. Bf2 {[%clk 0:00:54.8]}
15... g6 {[%clk 0:01:35.3]} 16. Nd5 {[%clk 0:00:50.8]} 16... Nxd5 {[%clk
0:01:22.8]} 17. exd5 {[%clk 0:00:52.7]} 17... Nb4 {[%clk 0:00:59.2]} 18. c3
{[%clk 0:00:48.9]} 18... Nxa2 {[%clk 0:00:34.6]} 1-0

[Event "*** Titled Tuesday Blitz"]
[Site "Chess.com"]
[Date "2018.12.04"]
[Round "3"]
[White "DenisQ"]
[Black "ChristopherYoo"]
[Result "1/2-1/2"]
[WhiteElo "2599"]
[BlackElo "2419"]
[TimeControl "180+2"]
[EndTime "13:35:24 PST"]
[Termination "Game drawn by agreement"]

1. Nf3 {[%clk 0:03:01.9]} 1... Nf6 {[%clk 0:03:00]} 2. g3 {[%clk 0:03:02.8]}
2... g6 {[%clk 0:02:59.9]} 3. Bg2 {[%clk 0:03:04.7]} 3... Bg7 {[%clk 0:03:00.9]}
4. O-O {[%clk 0:03:06.2]} 4... O-O {[%clk 0:03:01.5]} 5. c4 {[%clk 0:03:07.9]}
5... d5 {[%clk 0:03:01.1]} 6. cxd5 {[%clk 0:03:08.2]} 6... Nxd5 {[%clk
0:03:01.9]} 7. Nc3 {[%clk 0:03:08.4]} 7... Nxc3 {[%clk 0:02:56.8]} 8. dxc3
{[%clk 0:03:07.3]} 8... Nd7 {[%clk 0:02:34.1]} 9. Bg5 {[%clk 0:03:00.3]} 9... h6
{[%clk 0:02:25.1]} 10. Be3 {[%clk 0:03:00.5]} 10... c5 {[%clk 0:02:24.7]} 11.
Qd2 {[%clk 0:03:00.3]} 11... Kh7 {[%clk 0:02:25.4]} 12. Rfd1 {[%clk 0:02:59.6]}
12... Qc7 {[%clk 0:02:24.2]} 13. Qc2 {[%clk 0:02:46.8]} 13... Rb8 {[%clk
0:02:19]} 14. h4 {[%clk 0:02:45.5]} 14... Kg8 {[%clk 0:01:49.2]} 15. Qd2 {[%clk
0:02:44.6]} 15... h5 {[%clk 0:01:39.7]} 16. Bg5 {[%clk 0:02:43.4]} 16... Nb6
{[%clk 0:01:33.9]} 17. Bh6 {[%clk 0:02:45.3]} 17... Bg4 {[%clk 0:01:31.6]} 18.
Bxg7 {[%clk 0:02:47.2]} 18... Kxg7 {[%clk 0:01:31.7]} 19. b3 {[%clk 0:02:32.3]}
19... Rfd8 {[%clk 0:01:28.4]} 20. Qb2 {[%clk 0:02:26.6]} 20... Kg8 {[%clk
0:01:24]} 21. c4 {[%clk 0:02:26.7]} 21... Bxf3 {[%clk 0:01:11]} 22. Bxf3 {[%clk
0:02:26.9]} 22... Nd7 {[%clk 0:01:07.7]} 23. Rd5 {[%clk 0:02:10.4]} 23... Nf6
{[%clk 0:00:52.5]} 24. Rxd8+ {[%clk 0:02:07.5]} 24... Rxd8 {[%clk 0:00:52.6]}
25. b4 {[%clk 0:02:05.3]} 25... cxb4 {[%clk 0:00:46.5]} 26. Qxb4 {[%clk
0:02:05.7]} 26... b6 {[%clk 0:00:47.7]} 27. a4 {[%clk 0:02:05.1]} 27... Rc8
{[%clk 0:00:41]} 28. a5 {[%clk 0:02:06.1]} 28... e6 {[%clk 0:00:33.2]} 29. axb6
{[%clk 0:02:05.8]} 29... axb6 {[%clk 0:00:32.7]} 30. Ra6 {[%clk 0:01:50.9]}
30... Nd7 {[%clk 0:00:15.8]} 31. Ra4 {[%clk 0:01:47.6]} 31... Nc5 {[%clk
0:00:14.7]} 32. Ra1 {[%clk 0:01:47.2]} 32... Rd8 {[%clk 0:00:15.7]} 33. Rb1
{[%clk 0:01:47.2]} 33... Rd6 {[%clk 0:00:14.7]} 34. Kg2 {[%clk 0:01:46]} 1/2-1/2

[Event "*** Titled Tuesday Blitz"]
[Site "Chess.com"]
[Date "2018.12.04"]
[Round "3"]
[White "MFBerna"]
[Black "Superfelix"]
[Result "0-1"]
[WhiteElo "2363"]
[BlackElo "2387"]
[TimeControl "180+2"]
[EndTime "13:35:29 PST"]
[Termination "Superfelix won on time"]

1. e4 {[%clk 0:03:01.9]} 1... e6 {[%clk 0:02:59]} 2. d4 {[%clk 0:03:03.1]} 2...
d5 {[%clk 0:03:00.3]} 3. exd5 {[%clk 0:03:05]} 3... exd5 {[%clk 0:03:01.2]} 4.
Qf3 {[%clk 0:03:06.3]} 4... Bd6 {[%clk 0:03:00.2]} 5. Bd3 {[%clk 0:03:05.6]}
5... Nc6 {[%clk 0:03:00.2]} 6. c3 {[%clk 0:03:06.7]} 6... Nge7 {[%clk
0:02:54.9]} 7. Ne2 {[%clk 0:03:05.4]} 7... h5 {[%clk 0:02:53.9]} 8. h3 {[%clk
0:03:05.9]} 8... Be6 {[%clk 0:02:50.4]} 9. Bf4 {[%clk 0:03:03.7]} 9... Qd7
{[%clk 0:02:50.8]} 10. Nd2 {[%clk 0:02:59.5]} 10... O-O-O {[%clk 0:02:50.6]} 11.
O-O-O {[%clk 0:02:59.7]} 11... Ng6 {[%clk 0:02:48.5]} 12. Bxd6 {[%clk
0:02:59.2]} 12... Qxd6 {[%clk 0:02:50.4]} 13. g3 {[%clk 0:02:48.3]} 13... Nce7
{[%clk 0:02:49.6]} 14. h4 {[%clk 0:02:40]} 14... Bg4 {[%clk 0:02:48.9]} 15. Qg2
{[%clk 0:02:35.3]} 15... Rhe8 {[%clk 0:02:48.3]} 16. f3 {[%clk 0:02:35.6]} 16...
Bf5 {[%clk 0:02:49.5]} 17. Nb3 {[%clk 0:02:31.4]} 17... Bxd3 {[%clk 0:02:48.8]}
18. Rxd3 {[%clk 0:02:33.3]} 18... Nf5 {[%clk 0:02:50.2]} 19. f4 {[%clk
0:02:08.4]} 19... Re7 {[%clk 0:02:45.2]} 20. Ng1 {[%clk 0:01:26.5]} 20... Ne3
{[%clk 0:02:33.9]} 21. Qh3+ {[%clk 0:01:02.1]} 21... Ng4 {[%clk 0:02:34.4]} 22.
Nf3 {[%clk 0:00:59.6]} 22... f6 {[%clk 0:02:35.1]} 23. Nh2 {[%clk 0:00:53.9]}
23... Qe6 {[%clk 0:02:28.4]} 24. Nxg4 {[%clk 0:00:52.5]} 24... hxg4 {[%clk
0:02:30.3]} 25. Qg2 {[%clk 0:00:52.7]} 25... b6 {[%clk 0:02:22.7]} 26. Nd2
{[%clk 0:00:53.4]} 26... Rde8 {[%clk 0:02:18.1]} 27. Rd1 {[%clk 0:00:48.3]}
27... Qf5 {[%clk 0:02:19]} 28. Nf1 {[%clk 0:00:42.1]} 28... Re2 {[%clk
0:02:18.2]} 29. Qh1 {[%clk 0:00:33.8]} 29... Re1 {[%clk 0:02:18.1]} 30. Rxe1
{[%clk 0:00:16.9]} 30... Rxe1+ {[%clk 0:02:20]} 31. Kd2 {[%clk 0:00:18]} 31...
Rd1+ {[%clk 0:02:19.3]} 32. Kxd1 {[%clk 0:00:18.7]} 32... Qxd3+ {[%clk
0:02:20.6]} 33. Kc1 {[%clk 0:00:15.4]} 33... Ne7 {[%clk 0:02:20]} 34. Qg2 {[%clk
0:00:11.6]} 34... Nf5 {[%clk 0:02:20.7]} 35. Qf2 {[%clk 0:00:09.8]} 35... c6
{[%clk 0:02:21.3]} 36. a4 {[%clk 0:00:09.9]} 36... a5 {[%clk 0:02:22.1]} 37. Qe1
{[%clk 0:00:05.8]} 37... Kd7 {[%clk 0:02:21.8]} 38. Qd1 {[%clk 0:00:04.5]} 38...
Qe4 {[%clk 0:02:19.3]} 0-1